[Event "ChessKid Cup Div-II 2023"]
[Site "Online"]
[Date "2023.05.22"]
[Round "1.1"]
[White "Andreikin, Dmitry"]
[Black "Nguyen, Ngoc Truong Son"]
[Result "1/2-1/2"]
[ECO "E16"]
[WhiteElo "2729"]
[BlackElo "2645"]
[Annotator "TA"]
[PlyCount "133"]
[EventDate "2023.05.21"]
[EventType "k.o."]
[EventCountry "NET"]
[SourceTitle "playchess.com"]
[Source "ChessBase"]
[SourceQuality "1"]
[TimeControl "900+3"]

{[%evp 15,133,0,18,8,28,26,35,33,28,31,47,0,5,1,13,-14,0,6,25,23,35,34,36,-11,-10,-47,-30,-41,-50,-56,-46,-127,0,-31,-26,-32,0,0,0,-19,0,-8,-10,-6,-7,-8,-14,-20,-8,-22,0,0,0,0,0,0,0,0,0,0,0,0,0,0,0,0,27,8,13,8,89,89,90,90,89,87,166,163,158,177,152,175,134,125,29971,29973,29986,409,1660,360,356,335,286,0,196,85,85,80,80,59,69,34,47,8,80,0,0,0,0,0,85,0,0,0,0,0,0,0,0,0]} 1. d4 {[%emt 0:00:11]} Nf6 {[%emt 0:00:10]} 2. c4 {[%emt 0:01:14]} e6 {[%emt 0:01:53]} 3. g3 {[%emt 0:00:39]} d5 {[%emt 0:00:17]} 4. Bg2 {[%emt 0:00:01]} Bb4+ {[%emt 0:00:03]} 5. Nd2 {[%emt 0:00:03]} O-O {[%emt 0:00:55]} 6. Ngf3 {[%emt 0:00:02]} b6 {[%emt 0:00:28]} 7. O-O {[%emt 0:00:04]} Bb7 {[%emt 0:00:19]} 8. Ne5 {[%emt 0:00:03]} Nbd7 {[%emt 0:00:22]} 9. Qa4 $1 {[%emt 0:00:51] Strongly threatening Nxd7. 9.Qa4 scores better than 9.Ndf3. E16: Queen's Indian: 4 g3 Bb7 5 Bg2 Bb4+.} Bxd2 {[%emt 0:00:55]} 10. Bxd2 {[%emt 0:00:03]} Nxe5 {[%emt 0:00:09]} 11. dxe5 {[%emt 0:00:02] White is slightly better.} Nd7 {[%emt 0:00:14]} 12. cxd5 {[%emt 0:00:15]} Bxd5 {[%emt 0:00:35]} 13. Bxd5 {[%emt 0:00:16] [#]} (13. Rfd1 {feels hotter.} Nc5 14. Qg4 f5 15. exf6 Qxf6 16. Be3) 13... exd5 $146 {[%emt 0:00:03]} (13... Nc5 {is more complex.} 14. Qc2 Qxd5 15. Bf4 Qb7) ({Predecessor:} 13... Nc5 14. Qg4 exd5 15. Rac1 Qc8 16. Qxc8 Rfxc8 17. Rfd1 c6 18. Be3 Ne6 19. f4 f5 20. exf6 gxf6 {1-0 Durarbayli,V (2576)-Vidit,S (2669) Wch Blitz Almaty 2022 (4)}) 14. Bc3 {[%emt 0:01:35]} Re8 {[%emt 0:00:40]} 15. Qf4 {[%emt 0:01:43]} Qe7 {[%emt 0:01:34]} 16. Rad1 {[%emt 0:00:15]} c6 {[%emt 0:01:20][%cal Rd7e5]} 17. e4 {[%emt 0:00:15]} d4 {[%emt 0:00:22]} 18. Rxd4 {[%emt 0:00:40]} Nxe5 {[%emt 0:00:04]} 19. Rfd1 {[%emt 0:00:01]} (19. Qf5 $14 {deserves consideration.}) 19... c5 $36 {[%emt 0:00:25][%mdl 2048] Black has good play.} 20. Ra4 {[%emt 0:02:41]} Ng6 {[%emt 0:01:14]} 21. Qf5 {[%emt 0:00:49]} Rad8 {[%emt 0:00:15] Repels Rd7} 22. Rxd8 {[%emt 0:00:17]} Rxd8 {[%emt 0:00:04]} 23. h4 {[%emt 0:00:27]} (23. a3 $15) 23... Nf8 {[%emt 0:01:20]} ({Black should play} 23... b5 $1 $17 {[%cal Rb5a4]} 24. Ra5 Rd1+ 25. Kg2 b4) 24. Qg5 {[%emt 0:00:42][%csl Gc3][%cal Rg5g7]} f6 {[%emt 0:00:49]} 25. Qg4 {[%emt 0:00:01][%cal Oe4e5]} Qd7 {[%emt 0:00:13]} 26. Qxd7 {[%emt 0:01:14]} Rxd7 {[%emt 0:00:00][%mdl 4096] Endgame KRB-KRN} 27. f4 {[%emt 0:00:03]} Ne6 {[%emt 0:00:14]} 28. f5 {[%emt 0:00:07]} Nd8 {[%emt 0:00:11]} 29. e5 {[%emt 0:00:01]} fxe5 {[%emt 0:00:01]} 30. Bxe5 {[%emt 0:00:02]} Nc6 {[%emt 0:00:04]} 31. Bc3 {[%emt 0:00:01]} h5 {[%emt 0:00:19]} 32. g4 {[%emt 0:00:11]} b5 {[%emt 0:00:29]} 33. Ra6 {[%emt 0:00:06]} Nd4 {[%emt 0:00:03]} 34. gxh5 {[%emt 0:00:13]} Nxf5 {[%emt 0:00:07]} 35. a3 {[%emt 0:00:25]} Nxh4 {[%emt 0:00:19]} 36. Rc6 {[%emt 0:00:04]} c4 {[%emt 0:00:03]} 37. Rc5 {[%emt 0:00:03]} a6 {[%emt 0:00:02]} 38. Rc6 {[%emt 0:00:01]} Nf3+ {[%emt 0:00:04]} 39. Kf2 {[%emt 0:00:15]} Ng5 {[%emt 0:00:04]} 40. Ke3 {[%emt 0:00:08]} Ra7 {[%emt 0:00:10]} 41. Rg6 {[%emt 0:00:09][%mdl 1024] White has compensation.} Re7+ {[%emt 0:00:03]} 42. Kf4 {[%emt 0:00:26]} Ne6+ {[%emt 0:00:02]} (42... Nh3+ $1 $11 {keeps the balance.} 43. Kg3 Ng1) 43. Kf5 $16 {[%emt 0:00:02] White is more active.} Nc5 {[%emt 0:00:08] [#]} 44. h6 $1 {[%emt 0:00:04][%cal Og6c6] Black must now prevent Rc6!} Rf7+ {[%emt 0:00:02]} 45. Kg4 {[%emt 0:00:05][%cal Rh6g7]} Ne4 {[%emt 0:00:03]} (45... Nd3 $16) 46. Bxg7 $18 {[%emt 0:00:04]} ({Weaker is} 46. Rxa6 Nxc3 47. bxc3 gxh6 $11) (46. Rxg7+ Rxg7+ 47. Bxg7 Kh7 $11) 46... a5 {[%emt 0:00:02]} 47. Rb6 {[%emt 0:00:07]} b4 {[%emt 0:00:03]} (47... Nf2+ $2 48. Kh5 Kh7 49. Rxb5 $18) 48. axb4 {[%emt 0:00:01]} axb4 {[%emt 0:00:00]} 49. Rxb4 {[%emt 0:00:01]} Rc7 {[%emt 0:00:02][%mdl 8192]} (49... Kh7 $16 50. Rxc4 Nf2+ 51. Kg3 Nd3) 50. Kf5 {[%emt 0:00:03]} Ng3+ {[%emt 0:00:02]} 51. Ke6 {[%emt 0:00:05]} (51. Kg6 $142 Rc6+ 52. Bf6 Rxf6+ 53. Kxf6 Kh7 54. Rxc4 Kxh6 55. Rh4+ Nh5+ 56. Kf5) 51... Kh7 {[%emt 0:00:03]} (51... Nf1 $142 52. Rb8+ Kh7 53. Rh8+ Kg6) 52. Kd6 $2 {[%emt 0:00:05]} (52. Be5 Rc6+ 53. Kd5) 52... Rc8 {[%emt 0:00:02]} 53. Kd7 {[%emt 0:00:08]} Rc5 {[%emt 0:00:00]} 54. Kd6 {[%emt 0:00:01]} Rc8 {[%emt 0:00:01]} 55. Kd5 {[%emt 0:00:00] Prevents Ne4.} (55. Be5 $18 {and White stays clearly on top.} Nf5+ 56. Kd7) 55... Nf5 $16 {[%emt 0:00:01][%csl LRg7,LRh6]} 56. Be5 {[%emt 0:00:14]} (56. Rxc4 $2 {too greedy.} Ne3+ 57. Kd4 Nxc4 $19) 56... Kxh6 {[%emt 0:00:03]} 57. Rb6+ {[%emt 0:00:02]} (57. Rxc4 $2 {perishes.} Ne3+ 58. Kd4 Nxc4 $19) 57... Kg5 {[%emt 0:00:01]} 58. Rb7 {[%emt 0:00:03]} (58. Ke4 $5 {[%cal Re5f4]} Re8 59. Rc6 $14) 58... Kg4 {[%emt 0:00:02]} 59. Rf7 {[%emt 0:00:04]} Rd8+ {[%emt 0:00:03]} (59... Re8 $11) 60. Ke4 {[%emt 0:00:03]} (60. Kxc4 $16 Ne3+ 61. Kb4) 60... Ng3+ $11 {[%emt 0:00:01]} 61. Bxg3 {[%emt 0:00:02]} Kxg3 {[%emt 0:00:00] KR-KR} 62. Rf3+ {[%emt 0:00:02]} Kg4 {[%emt 0:00:03] [#]} (62... Kg2 $1 $11 63. Rc3 Re8+ 64. Kd5 Re2) 63. Rc3 {[%emt 0:00:01]} (63. Rf2 $1 $16) 63... Rd2 {[%emt 0:00:03] The position is equal.} 64. Rxc4 {[%emt 0:00:02] Intending Ke3+ and mate.} Rxb2 {[%emt 0:00:01]} 65. Ke3+ {[%emt 0:00:00]} Kf5 {[%emt 0:00:01]} 66. Kd3 {[%emt 0:00:01]} Ke5 {[%emt 0:00:03]} 67. Rc5+ {[%emt 0:00:01] White really could win this.   Weighted Error Value: White=0.42/Black=0.27 (precise)} 1/2-1/2

[Event "ChessKid Cup Div-II 2023"]
[Site "Online"]
[Date "2023.05.22"]
[Round "1.1"]
[White "Eljanov, Pavel"]
[Black "Rasulov, Vugar"]
[Result "1-0"]
[ECO "E54"]
[WhiteElo "2705"]
[BlackElo "2523"]
[Annotator "TA"]
[PlyCount "137"]
[EventDate "2023.05.21"]
[EventType "k.o."]
[EventCountry "NET"]
[SourceTitle "playchess.com"]
[Source "ChessBase"]
[SourceQuality "1"]
[TimeControl "900+3"]

{[%evp 22,137,0,8,8,0,0,0,0,0,0,0,18,2,35,0,0,-4,-5,-16,20,33,16,12,35,7,86,79,79,78,78,79,97,98,108,116,114,79,79,79,124,81,75,14,51,58,98,78,204,111,102,0,0,-187,0,0,0,0,0,0,486,153,156,0,398,230,472,477,477,477,421,402,689,687,1135,1077,969,902,941,931,916,815,812,767,837,721,875,870,924,917,894,888,882,720,1014,741,1108,1099,1067,1077,1134,1152,1225,1164,1313,1308,5422,2427,29978,29979,29982,29982,29986,29987,29987,29986,29992,29989]} 1. d4 {[%emt 0:00:06]} Nf6 {[%emt 0:00:06]} 2. c4 {[%emt 0:00:06]} e6 {[%emt 0:00:03]} 3. Nc3 {[%emt 0:00:07]} Bb4 {[%emt 0:00:03]} 4. e3 {[%emt 0:00:05]} O-O {[%emt 0:00:09]} 5. Bd3 {[%emt 0:00:04]} d5 {[%emt 0:00:03]} 6. a3 {[%emt 0:00:02]} Bxc3+ {[%emt 0:00:02]} 7. bxc3 {[%emt 0:00:01]} dxc4 {[%emt 0:00:01]} 8. Bxc4 {[%emt 0:00:00]} c5 {[%emt 0:00:01]} 9. Nf3 {[%emt 0:00:02]} Qc7 {[%emt 0:00:02]} 10. Be2 {[%emt 0:00:01]} b6 {[%emt 0:00:13]} 11. O-O {[%emt 0:00:04] 11.Bb2 injects fresh life into this line.} Ba6 {[%emt 0:00:40]} 12. Bxa6 {[%emt 0:00:06]} Nxa6 {[%emt 0:00:00] E54: Nimzo-Indian: Rubinstein: Main Line: 7...dxc4 8 Bxc4.} 13. Qe2 {[%emt 0:00:15]} Qb7 {[%emt 0:00:03]} 14. Bb2 {[%emt 0:00:27]} Rac8 {[%emt 0:00:30] The position is equal.} 15. Rfe1 {[%emt 0:01:17]} Ne4 {[%emt 0:01:23]} 16. Ne5 {[%emt 0:02:28] [#]} b5 $146 {[%emt 0:01:16]} ({Predecessor:} 16... Nb8 17. f3 Nd6 18. Rad1 Rfd8 19. e4 Nc6 20. Ng4 Na5 21. Bc1 cxd4 22. cxd4 Nac4 {1-0 Pein,M (2370)-Morrison,G (2335) London Nat West Young Masters 1985 (6)}) 17. f3 {[%emt 0:00:28]} (17. c4 $5 {[%cal Rc4b5]}) 17... Nd6 {[%emt 0:00:07]} (17... cxd4 $5 18. cxd4 (18. fxe4 dxc3 19. Bc1 Nc5 $15) 18... Nd6 $11) 18. e4 {[%emt 0:00:46]} (18. a4 {feels hotter.} cxd4 19. axb5 dxc3 20. Ba3) 18... Nb8 {[%emt 0:01:19]} 19. Rad1 {[%emt 0:00:29]} cxd4 {[%emt 0:00:08]} 20. cxd4 {[%emt 0:00:03]} Nc4 {[%emt 0:00:30]} 21. Nxc4 {[%emt 0:00:13]} bxc4 {[%emt 0:00:03]} 22. Bc3 {[%emt 0:00:24]} Nd7 {[%emt 0:00:05]} 23. d5 {[%emt 0:00:26]} e5 {[%emt 0:00:47]} (23... Rfe8 $11 {remains equal.}) 24. Rb1 $36 {[%emt 0:00:22][%cal Bd1b1,Bb1b2,Bb2c2][%mdl 2080] White is really pushing.} Qa6 {[%emt 0:00:05]} 25. Bb4 {[%emt 0:00:46]} Rfe8 {[%emt 0:00:04]} 26. Rec1 {[%emt 0:00:04]} Rb8 {[%emt 0:00:51]} 27. Rb2 {[%emt 0:01:11]} (27. Qxc4 Qxc4 28. Rxc4 a5 $17) (27. Rxc4 Qb6+ 28. Kh1 a5 $15) 27... Rec8 {[%emt 0:00:11]} 28. Rbc2 {[%emt 0:00:09][%cal Rc2c4]} Rc7 {[%emt 0:03:19]} 29. g3 {[%emt 0:00:03]} (29. Rxc4 Nb6 30. Bd6 Rxc4 $17) 29... Rbc8 {[%emt 0:00:18]} 30. Kg2 {[%emt 0:00:01]} h5 {[%emt 0:00:09]} 31. d6 {[%emt 0:01:09]} Rc6 {[%emt 0:00:04]} 32. f4 {[%emt 0:00:00]} (32. Rd1 $16) 32... exf4 {[%emt 0:01:05]} 33. gxf4 {[%emt 0:00:02]} Qb5 {[%emt 0:00:04]} 34. e5 {[%emt 0:00:15]} a5 {[%emt 0:00:09]} (34... Nc5 $16) 35. Be1 {[%emt 0:00:53]} (35. Bc3 $18) 35... Nc5 $16 {[%emt 0:00:35] [#] ...Nd3 is the strong threat.} 36. Qxc4 {[%emt 0:00:18]} (36. Rxc4 $2 Ne6 37. d7 Nxf4+ 38. Kf1 Nxe2 $19) ({White has to play} 36. Bc3 $1 $16) 36... Qb7 $11 {[%emt 0:00:02]} 37. Kg1 $2 {[%emt 0:00:19]} (37. Bxa5 $2 Nb3 38. Qxc6 Rxc6 $19) (37. Qf1 $11) 37... Ne6 $2 {[%emt 0:00:09]} (37... Nb3 $19 38. Qxc6 Rxc6 39. Rxc6 Nd4 40. Rc8+ Kh7) 38. Qe4 {[%emt 0:01:19]} (38. Qxc6 Rxc6 39. Rxc6 Nxf4 $17) 38... Rxc2 {[%emt 0:00:13]} 39. Qxb7 {[%emt 0:00:02]} Rxc1 {[%emt 0:00:00]} 40. f5 {[%emt 0:00:11]} Nd4 {[%emt 0:00:21][%mdl 8192]} (40... Rxe1+ $11 {and Black has nothing to worry.} 41. Kf2 Rec1 42. fxe6 fxe6) 41. Kf1 $2 {[%emt 0:00:14]} (41. Kg2 $18 {and the rest is easy.}) 41... Nxf5 $16 {[%emt 0:00:11]} 42. d7 $2 {[%emt 0:00:11] Some like it hot} ({Only move:} 42. Qe4 $16 g6 43. d7) 42... Rf8 $2 {[%emt 0:00:02][%mdl 8192]} (42... Ne3+ $2 43. Ke2 Rf8 44. Bd2 $18) (42... Rd8 $11) 43. Ke2 {[%emt 0:00:31]} (43. Qe4 $142 Ne7 44. Ke2) 43... Rc5 $2 {[%emt 0:00:48]} (43... Nd4+ 44. Kd2 Rc5) 44. Bf2 $18 {[%emt 0:00:12]} (44. Qe4 Ne7 45. e6 Rc6 46. exf7+ (46. Bxa5 Rxe6 $11) 46... Kxf7 47. Qf4+ (47. Bxa5 Re6 $11) 47... Rf6 48. Qc4+ Re6+ 49. Kd1 Nc6 $18) 44... Rxe5+ {[%emt 0:00:03]} 45. Kf3 {[%emt 0:00:01]} Ne7 {[%emt 0:00:18]} 46. Qc7 {[%emt 0:00:17]} Rd5 {[%emt 0:00:17]} (46... Rf5+ $142 47. Kg3 h4+ 48. Kh3 (48. Kxh4 Rxf2 49. d8=Q Nf5+ 50. Kg4 Rxd8 $18) 48... Nd5) 47. Bc5 {[%emt 0:00:06]} Rd3+ {[%emt 0:00:18]} 48. Ke2 {[%emt 0:00:08]} Nd5 {[%emt 0:00:01]} 49. Qd6 {[%emt 0:00:22] Active counter play!} ({Not} 49. d8=R Nf4+ 50. Qxf4 Rfxd8 $16) 49... Rd8 {[%emt 0:00:10]} 50. Kxd3 {[%emt 0:00:08]} Nf6 {[%emt 0:00:00]} 51. Qc6 {[%emt 0:00:08] [#] Qc8 would kill now.} Nxd7 {[%emt 0:00:05]} 52. Kc3 {[%emt 0:00:04] Threatens to win with Qc7.} Nf6 {[%emt 0:00:03]} 53. Bd4 {[%emt 0:00:05]} Nd5+ {[%emt 0:00:02]} 54. Kc4 {[%emt 0:00:01]} Ne7 {[%emt 0:00:01]} 55. Qb7 {[%emt 0:00:02]} Nf5 {[%emt 0:00:03]} 56. Bc5 {[%emt 0:00:01]} h4 {[%emt 0:00:02]} 57. Qc7 {[%emt 0:00:02]} Re8 {[%emt 0:00:05]} 58. Qd7 {[%emt 0:00:03]} Re6 {[%emt 0:00:01]} 59. Qd8+ {[%emt 0:00:03]} Kh7 {[%emt 0:00:00]} 60. Qxa5 {[%emt 0:00:02]} Re4+ {[%emt 0:00:01]} 61. Kd3 {[%emt 0:00:01]} Re5 {[%emt 0:00:01]} 62. Qb4 {[%emt 0:00:03]} f6 {[%emt 0:00:01]} 63. a4 {[%emt 0:00:02][%cal Ba3a4,Ba4a5,Ba5a6,Ba6a7][%mdl 32]} g5 {[%emt 0:00:01]} 64. a5 {[%emt 0:00:01] Threatening mate with a6.} g4 {[%emt 0:00:04]} 65. a6 {[%emt 0:00:02] White mates.} g3 {[%emt 0:00:00]} 66. hxg3 {[%emt 0:00:00]} h3 {[%emt 0:00:01]} 67. a7 {[%emt 0:00:05]} Rd5+ {[%emt 0:00:00]} 68. Kc4 {[%emt 0:00:03]} h2 {[%emt 0:00:03]} 69. Qb1 {[%emt 0:00:04] Weighted Error Value: White=0.54/Black=0.66} ({Weaker is} 69. a8=B h1=Q 70. Qb7+ (70. Bxd5 Qf1+ 71. Kc3 Qe1+ 72. Kd3 Qd1+ 73. Qd2 Qxd2+ 74. Kxd2 Nxg3 $16) 70... Kg6 71. Qxd5 Qxd5+ 72. Kxd5 (72. Bxd5 Nxg3 73. Bc6 Kf7 $16) 72... Nxg3 $18) 1-0

[Event "ChessKid Cup Div-II 2023"]
[Site "Online"]
[Date "2023.05.22"]
[Round "1.1"]
[White "Anton Guijarro, David"]
[Black "Kravtsiv, Martyn"]
[Result "1/2-1/2"]
[ECO "D56"]
[WhiteElo "2690"]
[BlackElo "2598"]
[Annotator "TA"]
[PlyCount "49"]
[EventDate "2023.05.21"]
[EventType "k.o."]
[EventCountry "NET"]
[SourceTitle "playchess.com"]
[Source "ChessBase"]
[SourceQuality "1"]
[TimeControl "900+3"]

{[%evp 13,49,0,21,22,30,14,25,18,28,25,25,34,35,27,28,18,18,0,7,-16,-4,-7,-9,-16,-4,-42,-44,-43,-56,-43,-55,-45,-47,-47,-9,-10,-12,-14]} 1. c4 {[%emt 0:00:06]} e6 {[%emt 0:00:12]} 2. Nc3 {[%emt 0:00:04]} d5 {[%emt 0:00:03]} 3. d4 {[%emt 0:00:02]} Nf6 {[%emt 0:00:02]} 4. Bg5 {[%emt 0:00:03]} Be7 {[%emt 0:00:12]} 5. e3 {[%emt 0:00:02]} h6 {[%emt 0:00:07]} 6. Bh4 {[%emt 0:00:02]} O-O {[%emt 0:00:06]} 7. Nf3 {[%emt 0:00:03]} dxc4 {[%emt 0:00:36]} 8. Bxc4 {[%emt 0:00:02] D56: Queen's Gambit Declined: Lasker Defence.} c5 {[%emt 0:00:01]} 9. dxc5 {[%emt 0:00:05]} Qxd1+ {[%emt 0:00:17]} 10. Rxd1 {[%emt 0:00:02] White has an edge.} Bxc5 {[%emt 0:00:02]} 11. O-O {[%emt 0:00:12]} a6 {[%emt 0:00:38] [#]} 12. Be2 $146 {[%emt 0:00:11]} ({Predecessor:} 12. Rd2 b5 13. Be2 Bb7 14. Rfd1 g5 15. Bg3 Nc6 16. Ne5 Rfd8 17. Bf3 Rxd2 18. Rxd2 {1-0 Brodowski,P (2000)-Piec,M (1800) POL-chT2 South U19 2000 (9.3)}) 12... Nc6 {[%emt 0:01:07][%cal Bb8c6,Bc6b4,Bb4a2][%mdl 32]} 13. Rc1 {[%emt 0:01:47]} Rd8 {[%emt 0:03:19]} 14. Na4 {[%emt 0:03:16]} Ba7 {[%emt 0:00:13]} 15. Bg3 {[%emt 0:00:08][%cal Bh4g3,Bg3c7,Bc7b6,Bb6a7][%mdl 32]} Bd7 {[%emt 0:01:27]} 16. Bc7 {[%emt 0:03:48]} Rdc8 {[%emt 0:00:05]} 17. Bb6 {[%emt 0:00:01]} Nb4 {[%emt 0:00:02][%csl LRa2,LRa4] [#] ...Rxc1 would be deadly.} 18. Bxa7 {[%emt 0:00:01] Threatens to win with Rxc8+.} Bxa4 {[%emt 0:00:29]} 19. Bd4 {[%emt 0:00:02]} Nxa2 {[%emt 0:01:14]} 20. Ra1 {[%emt 0:00:55]} Bb5 {[%emt 0:00:32]} 21. Bxb5 {[%emt 0:00:21]} axb5 {[%emt 0:00:00]} 22. Bxf6 {[%emt 0:00:40]} gxf6 {[%emt 0:00:00]} 23. Nd4 {[%emt 0:00:01]} Nb4 {[%emt 0:00:05]} 24. Rxa8 {[%emt 0:00:36]} Rxa8 {[%emt 0:00:03]} 25. Nxb5 {[%emt 0:00:00] Weighted Error Value: White=0.08 (flawless) /Black=0.04 (flawless)} 1/2-1/2

[Event "ChessKid Cup Div-II 2023"]
[Site "Online"]
[Date "2023.05.22"]
[Round "1.1"]
[White "Fedoseev, Vladimir"]
[Black "Mamedyarov, Shakhriyar"]
[Result "0-1"]
[ECO "A29"]
[WhiteElo "2680"]
[BlackElo "2738"]
[Annotator "TA"]
[PlyCount "62"]
[EventDate "2023.05.21"]
[EventType "k.o."]
[EventCountry "NET"]
[SourceTitle "playchess.com"]
[Source "ChessBase"]
[SourceQuality "1"]
[TimeControl "900+3"]

{[%evp 18,62,23,0,17,0,0,0,-3,-4,0,8,8,1,6,0,0,6,25,16,17,10,44,43,47,26,52,9,25,0,41,0,-8,0,0,-54,-67,-260,-245,-222,-176,-140,-158,-606,-636,-1310,-1315]} 1. c4 {[%emt 0:00:06]} e5 {[%emt 0:00:07]} 2. g3 {[%emt 0:00:03]} Nf6 {[%emt 0:00:02]} 3. Bg2 {[%emt 0:00:02]} d5 {[%emt 0:00:09]} 4. cxd5 {[%emt 0:00:04]} Nxd5 {[%emt 0:00:00]} 5. Nc3 {[%emt 0:00:12]} Nb6 {[%emt 0:00:17]} 6. Nf3 {[%emt 0:00:19]} Nc6 {[%emt 0:00:01]} 7. O-O {[%emt 0:00:11]} Be7 {[%emt 0:00:03]} 8. a3 {[%emt 0:00:07]} O-O {[%emt 0:00:20]} 9. b4 {[%emt 0:01:00]} Be6 {[%emt 0:00:02]} 10. d3 {[%emt 0:00:16]} Re8 {[%emt 0:00:12] A29: English Opening: Four Knights Variation with 4 g3.} (10... a5 $5 {[%cal Ra5b4]} 11. b5 Nd4 $11) 11. Be3 {[%emt 0:00:37]} Nd5 {[%emt 0:00:44]} 12. Nxd5 {[%emt 0:00:16]} Bxd5 {[%emt 0:00:00] [#] The position is equal.} 13. Qc2 $146 {[%emt 0:01:10]} ({Predecessor:} 13. Bc5 Bxc5 14. bxc5 Nd4 15. e3 Nxf3+ 16. Bxf3 e4 17. dxe4 Bxe4 18. Bxe4 Rxe4 {½-½ Gomes,M (2355)-Mohota,N (2271) IND-ch (Women) 41st 2014 (1)}) 13... a5 {[%emt 0:00:53]} 14. b5 {[%emt 0:00:58]} Nd4 {[%emt 0:00:03]} 15. Bxd4 {[%emt 0:00:02]} exd4 {[%emt 0:00:00]} 16. Rfc1 {[%emt 0:00:19]} c5 {[%emt 0:01:18]} 17. bxc6 {[%emt 0:00:14]} bxc6 {[%emt 0:00:02]} 18. Ne1 {[%emt 0:00:33]} Bg5 {[%emt 0:01:06] A strong pair of Bishops.} 19. Rcb1 {[%emt 0:00:27]} h5 {[%emt 0:00:16]} 20. Bxd5 {[%emt 0:00:40]} Qxd5 {[%emt 0:00:09]} 21. Nf3 {[%emt 0:00:03]} (21. h4 $5 {[%cal Rh4g5]} Bf6 22. Rb6 $14) 21... Bf6 {[%emt 0:00:14]} 22. Rb6 {[%emt 0:00:18]} Re6 {[%emt 0:00:20]} 23. Rab1 {[%emt 0:00:09]} Kh7 {[%emt 0:00:54]} 24. Rb8 {[%emt 0:00:46]} (24. h4 $14 {deserves consideration.}) 24... Rxb8 $11 {[%emt 0:00:04]} 25. Rxb8 {[%emt 0:00:02]} h4 {[%emt 0:00:47]} 26. Qd2 {[%emt 0:00:56]} (26. Nxh4 $2 {too greedy.} Bxh4 27. Rb1 Be7 $19) (26. Ra8 $11) 26... h3 $15 {[%emt 0:00:22]} 27. Kf1 $2 {[%emt 0:00:36] [#]} ({White should try} 27. Ne1 $15) 27... g5 $1 $19 {[%emt 0:00:21] aiming for ...g4.} 28. g4 {[%emt 0:00:02]} Kg7 {[%emt 0:00:37]} 29. Ra8 {[%emt 0:00:42]} c5 {[%emt 0:00:20]} 30. Rxa5 {[%emt 0:00:47]} (30. Rb8 $17) 30... Rb6 {[%emt 0:00:16] ...Rb1+ would be deadly.} 31. Qc2 {[%emt 0:00:42] Repels Rb1+} Qb7 {[%emt 0:00:11] Weighted Error Value: White=0.69/Black=0.10 (very precise)} 0-1